[Event "Early-Titled-Tuesday-Blitz-September-26-2023"]
[Site "Chess.com"]
[Date "2023.09.26"]
[Round "2"]
[White "LoaySameer"]
[Black "Zhigalko_Sergei"]
[Result "1/2-1/2"]
[WhiteElo "2609"]
[BlackElo "2831"]
[TimeControl "180+1"]
[EndTime "8:19:44 PDT"]
[Termination "Game drawn by 50-move rule"]

1. Nf3 {[%clk 0:03:00.9]} 1... d5 {[%clk 0:02:59.3]} 2. g3 {[%clk 0:03:00.6]}
2... c6 {[%clk 0:02:59.5]} 3. Bg2 {[%clk 0:03:01]} 3... Bg4 {[%clk 0:02:58.6]}
4. O-O {[%clk 0:03:01.3]} 4... Nd7 {[%clk 0:02:58.5]} 5. d3 {[%clk 0:03:01.3]}
5... e6 {[%clk 0:02:58.8]} 6. Nbd2 {[%clk 0:03:01.5]} 6... Bd6 {[%clk
0:02:58.9]} 7. h3 {[%clk 0:03:01.9]} 7... Bh5 {[%clk 0:02:58.8]} 8. e4 {[%clk
0:03:02.3]} 8... Ne7 {[%clk 0:02:59.1]} 9. Qe2 {[%clk 0:03:01]} 9... O-O {[%clk
0:02:59]} 10. Re1 {[%clk 0:02:58.8]} 10... a5 {[%clk 0:02:56.4]} 11. Nf1 {[%clk
0:02:58.7]} 11... a4 {[%clk 0:02:55.4]} 12. a3 {[%clk 0:02:58.8]} 12... Re8
{[%clk 0:02:55.3]} 13. g4 {[%clk 0:02:53.7]} 13... Bg6 {[%clk 0:02:55.2]} 14. e5
{[%clk 0:02:54]} 14... Bc7 {[%clk 0:02:54.2]} 15. Ng3 {[%clk 0:02:50.6]} 15...
c5 {[%clk 0:01:53.5]} 16. h4 {[%clk 0:02:50.5]} 16... h6 {[%clk 0:01:43.9]} 17.
h5 {[%clk 0:02:35.8]} 17... Bh7 {[%clk 0:01:44.1]} 18. g5 {[%clk 0:02:36.2]}
18... Nf5 {[%clk 0:01:44.4]} 19. Nxf5 {[%clk 0:02:19.9]} 19... exf5 {[%clk
0:01:40.3]} 20. Bf4 {[%clk 0:01:53.4]} 20... hxg5 {[%clk 0:01:31.7]} 21. Bxg5
{[%clk 0:01:53.5]} 21... f6 {[%clk 0:01:30.6]} 22. exf6 {[%clk 0:01:48.2]} 22...
Rxe2 {[%clk 0:01:17.4]} 23. f7+ {[%clk 0:01:48]} 23... Kxf7 {[%clk 0:01:17]} 24.
Bxd8 {[%clk 0:01:42.1]} 24... Rxe1+ {[%clk 0:01:17.1]} 25. Rxe1 {[%clk
0:01:42.1]} 25... Bxd8 {[%clk 0:01:12.6]} 26. Ne5+ {[%clk 0:01:40.4]} 26... Nxe5
{[%clk 0:01:11.4]} 27. Rxe5 {[%clk 0:01:41]} 27... Be7 {[%clk 0:00:43]} 28.
Bxd5+ {[%clk 0:01:37]} 28... Kf8 {[%clk 0:00:43.2]} 29. Bxb7 {[%clk 0:01:32.8]}
29... Rb8 {[%clk 0:00:41.9]} 30. Bc6 {[%clk 0:01:33.4]} 30... Rxb2 {[%clk
0:00:37]} 31. Bxa4 {[%clk 0:01:33.6]} 31... Ra2 {[%clk 0:00:29.2]} 32. Re6
{[%clk 0:01:31.5]} 32... Rxa3 {[%clk 0:00:26.2]} 33. Ra6 {[%clk 0:01:31.6]}
33... Bf6 {[%clk 0:00:20.6]} 34. Ra8+ {[%clk 0:01:31.5]} 34... Ke7 {[%clk
0:00:20.6]} 35. Ra7+ {[%clk 0:01:19.6]} 35... Kd6 {[%clk 0:00:19.5]} 36. Ra6+
{[%clk 0:01:19]} 36... Ke5 {[%clk 0:00:15.8]} 37. h6 {[%clk 0:01:05.9]} 37...
gxh6 {[%clk 0:00:14.2]} 38. f4+ {[%clk 0:01:06.2]} 38... Kxf4 {[%clk 0:00:13.6]}
39. Rxf6 {[%clk 0:01:06.9]} 39... Rxa4 {[%clk 0:00:13.4]} 40. Rxh6 {[%clk
0:01:07.3]} 40... Bg8 {[%clk 0:00:10.7]} 41. Rh4+ {[%clk 0:01:07.5]} 41... Ke3
{[%clk 0:00:07.8]} 42. Rxa4 {[%clk 0:01:08.4]} 42... Kd2 {[%clk 0:00:07.9]} 43.
Ra5 {[%clk 0:00:47.5]} 43... Kxc2 {[%clk 0:00:06.7]} 44. Rxc5+ {[%clk
0:00:47.4]} 44... Kxd3 {[%clk 0:00:07]} 45. Rxf5 {[%clk 0:00:47.8]} 45... Bb3
{[%clk 0:00:03.5]} 46. Kf2 {[%clk 0:00:47.5]} 46... Kc2 {[%clk 0:00:03.2]} 47.
Rc5+ {[%clk 0:00:46.8]} 47... Kb2 {[%clk 0:00:03.9]} 48. Ke3 {[%clk 0:00:46.8]}
48... Bc2 {[%clk 0:00:03.9]} 49. Kd2 {[%clk 0:00:46.4]} 49... Bb1 {[%clk
0:00:03.9]} 50. Rb5+ {[%clk 0:00:46.7]} 50... Ka1 {[%clk 0:00:04.4]} 51. Kc3
{[%clk 0:00:46.9]} 51... Ba2 {[%clk 0:00:04.5]} 52. Ra5 {[%clk 0:00:44.5]} 52...
Kb1 {[%clk 0:00:03.9]} 53. Rg5 {[%clk 0:00:43]} 53... Ka1 {[%clk 0:00:04.3]} 54.
Kb4 {[%clk 0:00:42.5]} 54... Kb2 {[%clk 0:00:04.2]} 55. Rg2+ {[%clk 0:00:42.6]}
55... Ka1 {[%clk 0:00:04.6]} 56. Ka3 {[%clk 0:00:42.1]} 56... Bb1 {[%clk
0:00:04.7]} 57. Kb3 {[%clk 0:00:41]} 57... Bf5 {[%clk 0:00:04.1]} 58. Ra2+
{[%clk 0:00:39.6]} 58... Kb1 {[%clk 0:00:03.8]} 59. Rf2 {[%clk 0:00:40.5]} 59...
Be6+ {[%clk 0:00:03.6]} 60. Kc3 {[%clk 0:00:38.1]} 60... Ka1 {[%clk 0:00:03.4]}
61. Rf1+ {[%clk 0:00:35.3]} 61... Ka2 {[%clk 0:00:03.3]} 62. Rf2+ {[%clk
0:00:35.9]} 62... Ka1 {[%clk 0:00:03.3]} 63. Re2 {[%clk 0:00:34.5]} 63... Bf7
{[%clk 0:00:03.7]} 64. Re7 {[%clk 0:00:33.6]} 64... Bd5 {[%clk 0:00:03.3]} 65.
Rd7 {[%clk 0:00:33.9]} 65... Be6 {[%clk 0:00:03.5]} 66. Rd6 {[%clk 0:00:34.3]}
66... Bf7 {[%clk 0:00:03.9]} 67. Rd2 {[%clk 0:00:33.6]} 67... Bg6 {[%clk
0:00:03.3]} 68. Kb3 {[%clk 0:00:33.5]} 68... Bf7+ {[%clk 0:00:03.4]} 69. Ka3
{[%clk 0:00:34.1]} 69... Bg6 {[%clk 0:00:03.4]} 70. Ra2+ {[%clk 0:00:28.4]}
70... Kb1 {[%clk 0:00:03.2]} 71. Rb2+ {[%clk 0:00:28.7]} 71... Ka1 {[%clk
0:00:03.2]} 72. Rb6 {[%clk 0:00:28.8]} 72... Bf5 {[%clk 0:00:03]} 73. Ra6 {[%clk
0:00:29.2]} 73... Kb1 {[%clk 0:00:02.7]} 74. Kb3 {[%clk 0:00:28.2]} 74... Bh7
{[%clk 0:00:01.9]} 75. Ra7 {[%clk 0:00:26.3]} 75... Bg8+ {[%clk 0:00:02.2]} 76.
Kc3 {[%clk 0:00:26.5]} 76... Be6 {[%clk 0:00:01.5]} 77. Rb7+ {[%clk 0:00:24.8]}
77... Ka1 {[%clk 0:00:01.6]} 78. Rb2 {[%clk 0:00:24.6]} 78... Ba2 {[%clk
0:00:02]} 79. Rd2 {[%clk 0:00:24.1]} 79... Bf7 {[%clk 0:00:02.3]} 80. Rd7 {[%clk
0:00:21.8]} 80... Bg8 {[%clk 0:00:02.6]} 81. Kb4 {[%clk 0:00:22.1]} 81... Kb2
{[%clk 0:00:02.6]} 82. Rd2+ {[%clk 0:00:21.7]} 82... Ka1 {[%clk 0:00:02.7]} 83.
Ka3 {[%clk 0:00:21.6]} 83... Bh7 {[%clk 0:00:02.7]} 84. Rd1+ {[%clk 0:00:20.5]}
84... Bb1 {[%clk 0:00:02.1]} 85. Rd8 {[%clk 0:00:21]} 85... Bc2 {[%clk
0:00:02.3]} 86. Rc8 {[%clk 0:00:21]} 86... Bb1 {[%clk 0:00:03.2]} 87. Rc3 {[%clk
0:00:20.6]} 87... Bf5 {[%clk 0:00:03.6]} 88. Kb4 {[%clk 0:00:21.1]} 88... Bb1
{[%clk 0:00:03.8]} 89. Kb3 {[%clk 0:00:21.6]} 89... Bf5 {[%clk 0:00:03.6]} 90.
Rc1+ {[%clk 0:00:21.9]} 90... Bb1 {[%clk 0:00:03.5]} 91. Kc3 {[%clk 0:00:22.6]}
91... Ka2 {[%clk 0:00:03.5]} 92. Rh1 {[%clk 0:00:22.8]} 92... Ka1 {[%clk
0:00:03.9]} 93. Rg1 {[%clk 0:00:20]} 93... Ka2 {[%clk 0:00:04]} 94. Rg8 {[%clk
0:00:20]} 94... Ka1 {[%clk 0:00:04.3]} 95. Ra8+ {[%clk 0:00:19.1]} 1/2-1/2

[Event "Early-Titled-Tuesday-Blitz-September-26-2023"]
[Site "Chess.com"]
[Date "2023.09.26"]
[Round "2"]
[White "bascheyaro"]
[Black "RandomNoob04"]
[Result "1/2-1/2"]
[WhiteElo "2806"]
[BlackElo "2596"]
[TimeControl "180+1"]
[EndTime "8:19:47 PDT"]
[Termination "Game drawn by repetition"]

1. d4 {[%clk 0:03:00.9]} 1... Nf6 {[%clk 0:03:00.5]} 2. c4 {[%clk 0:03:01]} 2...
c5 {[%clk 0:03:01.2]} 3. Nf3 {[%clk 0:03:01.2]} 3... cxd4 {[%clk 0:03:02.1]} 4.
Nxd4 {[%clk 0:03:02.1]} 4... b6 {[%clk 0:03:02.8]} 5. e3 {[%clk 0:03:00]} 5...
Bb7 {[%clk 0:03:03.3]} 6. Nc3 {[%clk 0:03:00.3]} 6... e6 {[%clk 0:03:03.1]} 7.
Nf3 {[%clk 0:02:59.4]} 7... Be7 {[%clk 0:03:00.8]} 8. g3 {[%clk 0:02:59.4]} 8...
O-O {[%clk 0:03:00.5]} 9. Bg2 {[%clk 0:02:59.9]} 9... d5 {[%clk 0:02:59.3]} 10.
Nd4 {[%clk 0:02:55.3]} 10... Qd7 {[%clk 0:02:49.1]} 11. Qa4 {[%clk 0:02:42.5]}
11... Qxa4 {[%clk 0:02:38.2]} 12. Nxa4 {[%clk 0:02:43.4]} 12... Rc8 {[%clk
0:02:36.5]} 13. b3 {[%clk 0:02:36.9]} 13... Nc6 {[%clk 0:02:36.6]} 14. Nxc6
{[%clk 0:02:12.8]} 14... Bxc6 {[%clk 0:02:37.5]} 15. cxd5 {[%clk 0:02:13.3]}
15... Nxd5 {[%clk 0:02:34]} 16. Bb2 {[%clk 0:02:07.7]} 16... Nxe3 {[%clk
0:02:22.5]} 17. Bxc6 {[%clk 0:01:59]} 17... Nc2+ {[%clk 0:02:22.5]} 18. Ke2
{[%clk 0:01:58.4]} 18... Rxc6 {[%clk 0:02:23.4]} 19. Rac1 {[%clk 0:01:53.7]}
19... Rac8 {[%clk 0:02:23]} 20. Rhd1 {[%clk 0:01:49]} 20... Bf6 {[%clk 0:02:11]}
21. Rb1 {[%clk 0:01:01.3]} 21... Bxb2 {[%clk 0:02:04.2]} 22. Rxb2 {[%clk
0:01:02.2]} 22... Nb4 {[%clk 0:02:03.8]} 23. Rbd2 {[%clk 0:00:59.9]} 23... Nd5
{[%clk 0:02:01.3]} 24. Kf3 {[%clk 0:00:55.7]} 24... Rc1 {[%clk 0:01:51.8]} 25.
Rxc1 {[%clk 0:00:51.8]} 25... Rxc1 {[%clk 0:01:52.7]} 26. Nb2 {[%clk 0:00:52.1]}
26... g6 {[%clk 0:01:44.4]} 27. Nc4 {[%clk 0:00:50.5]} 27... Ra1 {[%clk
0:01:39.3]} 28. Ne5 {[%clk 0:00:47.7]} 28... Rc1 {[%clk 0:01:23.2]} 29. h4
{[%clk 0:00:45.4]} 29... h5 {[%clk 0:01:22.2]} 30. Ke2 {[%clk 0:00:38.6]} 30...
Kf8 {[%clk 0:01:19.7]} 31. Nd3 {[%clk 0:00:34.6]} 31... Rc7 {[%clk 0:01:18.7]}
32. Ne5 {[%clk 0:00:32.3]} 32... Ke7 {[%clk 0:01:18.5]} 33. Nf3 {[%clk
0:00:23.7]} 33... Rc1 {[%clk 0:01:13]} 34. Nd4 {[%clk 0:00:23.1]} 34... a6
{[%clk 0:01:10.7]} 35. Kd3 {[%clk 0:00:18.7]} 35... Nb4+ {[%clk 0:01:04]} 36.
Ke4 {[%clk 0:00:16.2]} 36... Nc6 {[%clk 0:00:52.9]} 37. Nf3 {[%clk 0:00:10]}
37... Rc3 {[%clk 0:00:49.2]} 38. Kf4 {[%clk 0:00:09.6]} 38... f6 {[%clk
0:00:42.8]} 39. Ke4 {[%clk 0:00:08]} 39... e5 {[%clk 0:00:35.2]} 40. Ne1 {[%clk
0:00:07.5]} 40... Ke6 {[%clk 0:00:30.2]} 41. Rd3 {[%clk 0:00:06.9]} 41... Rc1
{[%clk 0:00:24.3]} 42. Ng2 {[%clk 0:00:07.2]} 42... Nb4 {[%clk 0:00:19.2]} 43.
Rd2 {[%clk 0:00:07.2]} 43... f5+ {[%clk 0:00:16.8]} 44. Ke3 {[%clk 0:00:07.6]}
44... Nd5+ {[%clk 0:00:17]} 45. Kf3 {[%clk 0:00:07.7]} 45... e4+ {[%clk
0:00:15.4]} 46. Ke2 {[%clk 0:00:08.1]} 46... Ke5 {[%clk 0:00:12.9]} 47. Rb2
{[%clk 0:00:07.5]} 47... Rg1 {[%clk 0:00:11.4]} 48. Ne3 {[%clk 0:00:07.6]} 48...
Nxe3 {[%clk 0:00:11.6]} 49. Kxe3 {[%clk 0:00:08.1]} 49... Rd1 {[%clk 0:00:11.1]}
50. Rc2 {[%clk 0:00:07.9]} 50... Rd6 {[%clk 0:00:09.3]} 51. Rc8 {[%clk
0:00:07.6]} 51... Kd5 {[%clk 0:00:09.4]} 52. Rg8 {[%clk 0:00:07.4]} 52... Ke5
{[%clk 0:00:09.5]} 53. Re8+ {[%clk 0:00:07.6]} 53... Re6 {[%clk 0:00:09.9]} 54.
Rb8 {[%clk 0:00:07.7]} 54... a5 {[%clk 0:00:09.9]} 55. Rc8 {[%clk 0:00:07.2]}
55... Rd6 {[%clk 0:00:09.6]} 56. Re8+ {[%clk 0:00:07.6]} 56... Kf6 {[%clk
0:00:10]} 57. Rb8 {[%clk 0:00:07.2]} 57... Rc6 {[%clk 0:00:09.8]} 58. Ke2 {[%clk
0:00:07.1]} 58... Rc2+ {[%clk 0:00:09.3]} 59. Ke3 {[%clk 0:00:07.8]} 59... Rxa2
{[%clk 0:00:10]} 60. Rxb6+ {[%clk 0:00:07.8]} 60... Kg7 {[%clk 0:00:10.5]} 61.
f3 {[%clk 0:00:07.4]} 61... exf3 {[%clk 0:00:09.4]} 62. Kxf3 {[%clk 0:00:07.7]}
62... Rb2 {[%clk 0:00:10]} 63. Kf4 {[%clk 0:00:08.1]} 63... a4 {[%clk
0:00:10.5]} 64. Rb7+ {[%clk 0:00:08.3]} 64... Kf8 {[%clk 0:00:10]} 65. Kg5
{[%clk 0:00:08]} 65... Rxb3 {[%clk 0:00:10.1]} 66. Ra7 {[%clk 0:00:07.6]} 66...
Rxg3+ {[%clk 0:00:09.6]} 67. Kf6 {[%clk 0:00:08.2]} 67... Ke8 {[%clk 0:00:10.1]}
68. Rxa4 {[%clk 0:00:08.4]} 68... Rg4 {[%clk 0:00:09.4]} 69. Ra7 {[%clk
0:00:08.5]} 69... f4 {[%clk 0:00:08.7]} 70. Ra3 {[%clk 0:00:08.3]} 70... Rg3
{[%clk 0:00:08.5]} 71. Ra4 {[%clk 0:00:08.4]} 71... f3 {[%clk 0:00:08.6]} 72.
Rd4 {[%clk 0:00:07.9]} 72... f2 {[%clk 0:00:07.3]} 73. Rf4 {[%clk 0:00:08.1]}
73... Rg2 {[%clk 0:00:07.7]} 74. Ke5 {[%clk 0:00:07.6]} 74... Ke7 {[%clk
0:00:07.9]} 75. Rf3 {[%clk 0:00:08]} 75... Rg4 {[%clk 0:00:05.6]} 76. Rxf2
{[%clk 0:00:08]} 76... Rxh4 {[%clk 0:00:06.2]} 77. Ra2 {[%clk 0:00:08.3]} 77...
Rg4 {[%clk 0:00:05.4]} 78. Ra7+ {[%clk 0:00:08.9]} 78... Kd8 {[%clk 0:00:06]}
79. Kd6 {[%clk 0:00:09.2]} 79... Kc8 {[%clk 0:00:06.5]} 80. Rh7 {[%clk 0:00:09]}
80... h4 {[%clk 0:00:06.7]} 81. Rg7 {[%clk 0:00:07.9]} 81... g5 {[%clk
0:00:06.7]} 82. Ke6 {[%clk 0:00:08.1]} 82... Rg3 {[%clk 0:00:06.5]} 83. Kd5
{[%clk 0:00:08.1]} 83... h3 {[%clk 0:00:06.5]} 84. Rh7 {[%clk 0:00:08.7]} 84...
g4 {[%clk 0:00:06.6]} 85. Kc6 {[%clk 0:00:09.5]} 85... Kd8 {[%clk 0:00:06.4]}
86. Kd6 {[%clk 0:00:10.2]} 86... Ke8 {[%clk 0:00:06.8]} 87. Ke6 {[%clk
0:00:10.9]} 87... Kf8 {[%clk 0:00:07.5]} 88. Kf6 {[%clk 0:00:11.5]} 88... Kg8
{[%clk 0:00:07.9]} 89. Ra7 {[%clk 0:00:11.9]} 89... h2 {[%clk 0:00:07.3]} 90.
Ra8+ {[%clk 0:00:12.3]} 90... Kh7 {[%clk 0:00:07.8]} 91. Ra7+ {[%clk 0:00:12.9]}
91... Kh6 {[%clk 0:00:07.7]} 92. Ra8 {[%clk 0:00:11.7]} 92... Kh7 {[%clk
0:00:08]} 93. Ra7+ {[%clk 0:00:11.6]} 93... Kg8 {[%clk 0:00:08.4]} 94. Ra8+
{[%clk 0:00:12.5]} 94... Kh7 {[%clk 0:00:08.7]} 1/2-1/2

[Event "Early-Titled-Tuesday-Blitz-September-26-2023"]
[Site "Chess.com"]
[Date "2023.09.26"]
[Round "2"]
[White "Caroexpert"]
[Black "ferdipy"]
[Result "0-1"]
[WhiteElo "2462"]
[BlackElo "2273"]
[TimeControl "180+1"]
[EndTime "8:19:56 PDT"]
[Termination "ferdipy won on time"]

1. Nf3 {[%clk 0:02:58.6]} 1... Nf6 {[%clk 0:02:30.3]} 2. c4 {[%clk 0:02:59.5]}
2... e6 {[%clk 0:02:30.2]} 3. Nc3 {[%clk 0:02:53.8]} 3... d5 {[%clk 0:02:29.6]}
4. e3 {[%clk 0:02:53.1]} 4... Be7 {[%clk 0:02:27.3]} 5. b3 {[%clk 0:02:53.1]}
5... O-O {[%clk 0:02:27]} 6. Bb2 {[%clk 0:02:53.5]} 6... c5 {[%clk 0:02:24.8]}
7. cxd5 {[%clk 0:02:48.6]} 7... Nxd5 {[%clk 0:02:22.8]} 8. Nxd5 {[%clk
0:02:39.8]} 8... exd5 {[%clk 0:02:23.7]} 9. d4 {[%clk 0:02:35.7]} 9... b6 {[%clk
0:02:22.1]} 10. Be2 {[%clk 0:02:35.1]} 10... Ba6 {[%clk 0:02:19.8]} 11. Bxa6
{[%clk 0:02:29.9]} 11... Nxa6 {[%clk 0:02:20.7]} 12. O-O {[%clk 0:02:30.3]}
12... Bf6 {[%clk 0:02:17.9]} 13. Qe2 {[%clk 0:02:27.3]} 13... Nb4 {[%clk
0:02:15]} 14. Rfd1 {[%clk 0:02:25.3]} 14... Rc8 {[%clk 0:02:11]} 15. a3 {[%clk
0:01:44.9]} 15... Nc6 {[%clk 0:02:07.8]} 16. dxc5 {[%clk 0:01:34.8]} 16... Bxb2
{[%clk 0:02:07.9]} 17. Qxb2 {[%clk 0:01:33.8]} 17... bxc5 {[%clk 0:02:06.9]} 18.
Rac1 {[%clk 0:01:34.4]} 18... Ne7 {[%clk 0:02:02.4]} 19. Ne5 {[%clk 0:01:12.6]}
19... Qd6 {[%clk 0:01:56.8]} 20. Nd3 {[%clk 0:00:50]} 20... Rc7 {[%clk
0:01:47.1]} 21. Nf4 {[%clk 0:00:40.4]} 21... Rfc8 {[%clk 0:01:38.1]} 22. Qd2
{[%clk 0:00:25.8]} 22... Rd7 {[%clk 0:01:32.2]} 23. b4 {[%clk 0:00:25.4]} 23...
c4 {[%clk 0:01:29]} 24. Qd4 {[%clk 0:00:19.5]} 24... Qb6 {[%clk 0:01:17.2]} 25.
Qc3 {[%clk 0:00:11.5]} 25... Rcd8 {[%clk 0:01:04.8]} 26. Rd4 {[%clk 0:00:11.3]}
26... Nc6 {[%clk 0:01:03.5]} 27. Rd2 {[%clk 0:00:11]} 27... h6 {[%clk
0:00:55.2]} 28. Rcd1 {[%clk 0:00:11]} 28... Ne7 {[%clk 0:00:53.8]} 29. Nh5
{[%clk 0:00:09.5]} 29... Qg6 {[%clk 0:00:52.7]} 30. Nf4 {[%clk 0:00:09.7]} 30...
Qf5 {[%clk 0:00:51.8]} 31. Rd4 {[%clk 0:00:10]} 31... Nc6 {[%clk 0:00:49.8]} 32.
R4d2 {[%clk 0:00:08.2]} 32... d4 {[%clk 0:00:41.1]} 33. Qxc4 {[%clk 0:00:07.9]}
33... dxe3 {[%clk 0:00:41.4]} 34. Rxd7 {[%clk 0:00:07.2]} 34... exf2+ {[%clk
0:00:40.6]} 35. Kxf2 {[%clk 0:00:06.9]} 35... Rxd7 {[%clk 0:00:40.1]} 36. Rxd7
{[%clk 0:00:07.4]} 36... Qxd7 {[%clk 0:00:40.9]} 37. Qd5 {[%clk 0:00:06]} 37...
Qc7 {[%clk 0:00:38.8]} 38. g3 {[%clk 0:00:06.1]} 38... Qb6+ {[%clk 0:00:37.8]}
39. Qc5 {[%clk 0:00:05.9]} 39... Qb7 {[%clk 0:00:24.1]} 40. Nd5 {[%clk
0:00:05.5]} 40... Nd8 {[%clk 0:00:19.2]} 41. Ne7+ {[%clk 0:00:04.4]} 41... Kh7
{[%clk 0:00:16.6]} 42. Qf5+ {[%clk 0:00:04.2]} 42... Kh8 {[%clk 0:00:13]} 43.
Nd5 {[%clk 0:00:04.5]} 43... Ne6 {[%clk 0:00:11.3]} 44. Qe5 {[%clk 0:00:04.7]}
44... Qd7 {[%clk 0:00:09.9]} 45. Qb8+ {[%clk 0:00:04.2]} 45... Kh7 {[%clk
0:00:09.7]} 46. Qe5 {[%clk 0:00:05.1]} 46... Kg8 {[%clk 0:00:06.5]} 47. Qb8+
{[%clk 0:00:04.6]} 47... Kh7 {[%clk 0:00:06.6]} 48. Qe5 {[%clk 0:00:04.6]} 48...
Kg8 {[%clk 0:00:07.1]} 49. Qe4 {[%clk 0:00:04.5]} 49... Nf8 {[%clk 0:00:06.5]}
50. Ne7+ {[%clk 0:00:04.1]} 50... Kh8 {[%clk 0:00:07.2]} 51. Nf5 {[%clk
0:00:04.4]} 51... Qe6 {[%clk 0:00:06.7]} 52. Qxe6 {[%clk 0:00:04.4]} 52... Nxe6
{[%clk 0:00:07.4]} 53. Nd6 {[%clk 0:00:05.1]} 53... Kg8 {[%clk 0:00:07.7]} 54.
Nc8 {[%clk 0:00:04.5]} 54... a6 {[%clk 0:00:07.2]} 55. Ke3 {[%clk 0:00:05.3]}
55... Kf8 {[%clk 0:00:07.1]} 56. a4 {[%clk 0:00:05.8]} 56... Ke8 {[%clk
0:00:06.6]} 57. Nd6+ {[%clk 0:00:06.5]} 57... Kd7 {[%clk 0:00:07]} 58. Ne4
{[%clk 0:00:07.1]} 58... Kc6 {[%clk 0:00:07.3]} 59. Kd3 {[%clk 0:00:07]} 59...
Kd5 {[%clk 0:00:07.7]} 60. Nc3+ {[%clk 0:00:06.8]} 60... Kc6 {[%clk 0:00:07.8]}
61. Kc4 {[%clk 0:00:07.4]} 61... Nc7 {[%clk 0:00:08.3]} 62. b5+ {[%clk
0:00:07.2]} 62... axb5+ {[%clk 0:00:09.2]} 63. axb5+ {[%clk 0:00:08.1]} 63...
Kb7 {[%clk 0:00:08.4]} 64. Kc5 {[%clk 0:00:08]} 64... Ne6+ {[%clk 0:00:08.8]}
65. Kd6 {[%clk 0:00:08.2]} 65... Nd4 {[%clk 0:00:08.9]} 66. Ke7 {[%clk
0:00:07.2]} 66... f5 {[%clk 0:00:09.5]} 67. Kf7 {[%clk 0:00:07.3]} 67... g5
{[%clk 0:00:10.1]} 68. Kg6 {[%clk 0:00:08]} 68... f4 {[%clk 0:00:10.5]} 69. gxf4
{[%clk 0:00:08.1]} 69... gxf4 {[%clk 0:00:11.2]} 70. Kxh6 {[%clk 0:00:08.8]}
70... f3 {[%clk 0:00:11.7]} 71. Ne4 {[%clk 0:00:09.1]} 71... Nxb5 {[%clk
0:00:11.4]} 72. h4 {[%clk 0:00:06.9]} 72... Kc6 {[%clk 0:00:11.9]} 73. h5 {[%clk
0:00:06.4]} 73... Kd5 {[%clk 0:00:12.5]} 74. Nf2 {[%clk 0:00:05.7]} 74... Nd6
{[%clk 0:00:12.8]} 75. Kg7 {[%clk 0:00:05.6]} 75... Ke5 {[%clk 0:00:12.7]} 76.
Kg6 {[%clk 0:00:05.2]} 76... Nf5 {[%clk 0:00:13.1]} 77. Ng4+ {[%clk 0:00:05.3]}
77... Kf4 {[%clk 0:00:13.7]} 78. Nf2 {[%clk 0:00:06.1]} 78... Nh4+ {[%clk
0:00:13.8]} 79. Kg7 {[%clk 0:00:05.9]} 79... Kg3 {[%clk 0:00:13.6]} 80. h6
{[%clk 0:00:06.8]} 80... Nf5+ {[%clk 0:00:12.9]} 81. Kg6 {[%clk 0:00:06.6]}
81... Nxh6 {[%clk 0:00:13.5]} 82. Nd3 {[%clk 0:00:05.9]} 82... Ng4 {[%clk
0:00:12.3]} 83. Kg5 {[%clk 0:00:06.8]} 83... Ne3 {[%clk 0:00:11.8]} 84. Kh5
{[%clk 0:00:04.8]} 84... Nc4 {[%clk 0:00:10.7]} 85. Kg5 {[%clk 0:00:04.3]} 85...
Ne5 {[%clk 0:00:09.1]} 0-1